bitfinex/quotes_SOLUSD_20241117
["timestamp","ask_amount","ask_price","bid_price","bid_amount"]
[1731826841917,42.78561889,239.2,239.1,38.60501889]
[1731826842118,38.60501889,239.24,239.14,38.60501889]
[1731826842322,38.60501889,239.2,239.07,0.25098]
[1731826842535,38.60501889,239.18,239.06,49.06221889]
[1731826842913,38.60501889,239.16,239.04,38.60501889]
[1731826843239,6.50794536,239.24,239.11,38.60501889]
[1731826843407,45.11296425,239.24,239.13,38.60501889]
[1731826844112,4.18,239.23,239.13,38.60501889]
[1731826844938,38.60501889,239.22,239.11,38.60501889]
[1731826845212,38.60501889,239.19,239.07,38.60501889]
[1731826845422,23.776884,239.14,239.03,42.78851889]
[1731826845919,23.776884,239.12,239.02,10.459]
[1731826846319,23.776884,239.12,239.02,14.6427]
[1731826846518,23.776884,239.12,239.02,10.459]
[1731826846715,23.776884,239.1,239.01,38.60501889]
[1731826847133,23.776884,239.08,239.01,38.60501889]
[1731826847810,23.776884,239.08,238.99,38.60501889]
[1731826848016,62.38190289,239.08,238.97,38.60501889]
[1731826848217,23.776884,239.05,238.97,38.60501889]
[1731826849018,38.60501889,239.04,238.94,0.4646735]
[1731826849224,23.776884,239.03,238.95,42.78991889]
[1731826849438,23.776884,239.03,238.94,0.4646735]
[1731826849936,38.60501889,239.0,238.94,0.4646735]
[1731826850125,23.776884,238.99,238.94,0.4646735]
[1731826850924,76.11391889,239.08,238.97,38.60501889]
[1731826851238,38.60501889,239.14,239.04,0.25098]
[1731826851441,12.2413,239.23,239.12,38.60501889]
[1731826851627,0.1,239.26,239.12,38.60501889]
[1731826851628,4.1802,239.22,239.12,38.60501889]
[1731826851948,42.78521889,239.22,239.1,38.60501889]
[1731826852245,38.60501889,239.2,239.1,38.60501889]
[1731826852433,38.60501889,239.18,239.09,0.25098]
[1731826852627,38.60501889,239.2,239.09,0.25098]
[1731826852824,38.60501889,239.2,239.1,38.60501889]
[1731826853025,42.78521889,239.22,239.1,38.60501889]
[1731826853239,0.1,239.26,239.09,0.25098]
[1731826853240,4.1793,239.27,239.17,38.60501889]
[1731826853540,4.1793,239.27,239.19,38.60501889]
[1731826853741,4.1787,239.31,239.21,38.60501889]
[1731826854234,4.1787,239.31,239.23,38.60501889]
[1731826854742,38.60501889,239.39,239.27,38.60501889]
[1731826854917,34.3211,239.4,239.31,38.60501889]
[1731826855121,4.1758,239.48,239.38,38.60501889]
[1731826855325,38.60501889,239.47,239.36,38.60501889]
[1731826855517,38.60501889,239.45,239.34,38.73050889]
[1731826855728,38.60501889,239.43,239.33,10.4455]
[1731826856038,38.60501889,239.43,239.32,38.60501889]
[1731826857142,4.1769,239.41,239.32,38.60501889]
[1731826857349,23.776884,239.4,239.32,38.60501889]
[1731826857649,23.776884,239.4,239.26,10.4486]
[1731826857650,23.776884,239.4,239.3,38.60501889]
[1731826857832,30.2439,239.49,239.36,38.60501889]
[1731826857833,38.60501889,239.47,239.36,38.60501889]
[1731826858029,38.60501889,239.47,239.28,0.1]
[1731826858030,4.1762,239.46,239.38,38.60501889]
[1731826858235,38.60501889,239.45,239.34,38.60501889]
[1731826858428,38.60501889,239.41,239.3,38.60501889]
[1731826858824,38.60501889,239.39,239.28,38.60501889]
[1731826859353,4.1774,239.38,239.3,38.60501889]
[1731826859533,23.776884,239.37,239.3,38.60501889]
[1731826859721,23.776884,239.37,239.28,38.60501889]
[1731826860149,38.60501889,239.34,239.23,38.60501889]
[1731826860332,27.955184,239.33,239.23,38.60501889]
[1731826860647,27.955184,239.33,239.2,0.04]
[1731826860648,23.776884,239.29,239.2,0.04]
[1731826860948,23.776884,239.27,239.2,0.04]
[1731826861529,62.38190289,239.21,239.2,0.04]
[1731826862525,66.56230289,239.21,239.2,0.04]
[1731826863044,30.1439,239.3,239.17,0.1]
[1731826863244,12.5464,239.45,239.29,38.60501889]
[1731826863427,38.60501889,239.41,239.29,38.60501889]
[1731826863627,38.60501889,239.39,239.29,38.60501889]
[1731826863949,4.1764,239.44,239.25,38.60501889]
[1731826863950,38.60501889,239.35,239.25,38.60501889]
[1731826864147,38.60501889,239.31,239.21,38.60501889]
[1731826864360,38.60501889,239.29,239.19,38.60501889]
[1731826864644,42.78421889,239.29,239.19,38.60501889]
[1731826865353,42.78421889,239.29,239.15,10.4536]
[1731826865354,23.776884,239.28,239.17,38.60501889]
[1731826865845,38.60501889,239.27,239.17,38.60501889]
[1731826866147,23.776884,239.26,239.17,38.60501889]
[1731826866546,23.776884,239.24,239.15,10.4536]
[1731826867553,23.776884,239.22,239.15,10.4536]
[1731826867727,0.1,239.38,239.18,0.25098]
[1731826867935,38.60501889,239.28,239.17,38.60501889]
[1731826868128,38.60501889,239.28,239.18,0.12549]
[1731826868335,38.60501889,239.3,239.19,38.60501889]
[1731826868535,4.179,239.29,239.19,38.60501889]
[1731826868948,23.776884,239.28,239.19,38.60501889]
[1731826869342,23.776884,239.28,239.19,42.78561889]
[1731826870832,38.60501889,239.22,239.11,38.60501889]
[1731826871137,23.776884,239.19,239.09,49.06101889]
[1731826871450,0.08993253,239.2,239.13,38.60501889]
[1731826871631,0.08993253,239.2,239.15,38.60501889]
[1731826872733,0.08993253,239.2,239.13,49.05931889]
[1731826872934,0.08993253,239.2,239.13,53.24101889]
[1731826873134,0.08993253,239.2,239.13,14.636]
[1731826873353,0.08993253,239.2,239.13,53.24101889]
[1731826873735,0.08993253,239.2,239.15,38.60501889]
[1731826874458,0.08993253,239.2,239.17,38.60501889]
[1731826874651,0.08993253,239.2,239.18,4.1809]
[1731826874860,0.08993253,239.2,239.14,4.1816]
[1731826875158,0.08993253,239.2,239.17,38.60501889]
[1731826876255,0.08993253,239.2,239.18,4.1809]
[1731826876575,0.08993253,239.2,239.19,38.60501889]
[1731826876739,0.08993253,239.2,239.18,14.6332]
[1731826878332,0.08993253,239.2,239.19,38.60501889]
[1731826882064,0.08993253,239.2,239.18,10.4523]
[1731826882771,0.08993253,239.2,239.18,14.6332]
[1731826883865,0.08993253,239.2,239.19,38.60501889]
[1731826884751,0.08993253,239.2,239.19,23.78055391]
[1731826886553,0.08650151,239.25,239.22,0.1]
[1731826886873,0.1,239.51,239.22,0.1]
[1731826886874,27.95655391,239.46,239.27,0.1]
[1731826887160,27.95655391,239.46,239.27,44.13153391]
[1731826887367,23.78055391,239.42,239.27,23.78055391]
[1731826887549,27.95805391,239.38,239.27,23.78055391]
[1731826887865,4.1777,239.37,239.27,23.78055391]
[1731826888068,23.78055391,239.38,239.27,23.78055391]
[1731826888251,23.78055391,239.36,239.27,23.78055391]
[1731826888457,27.95845391,239.36,239.27,23.78055391]
[1731826888870,4.1779,239.36,239.27,38.6280532]
[1731826889550,4.178,239.35,239.27,38.6280532]
[1731826890363,38.6280532,239.31,239.21,49.0789532]
[1731826890576,38.6280532,239.31,239.16,13.4019]
[1731826890577,23.776884,239.28,239.19,38.6280532]
[1731826890751,27.955684,239.3,239.17,38.6280532]
[1731826890752,23.776884,239.26,239.17,38.6280532]
[1731826891158,0.08283757,239.2,239.19,38.6280532]
[1731826892563,0.08283757,239.2,239.19,42.8087532]
[1731826894671,30.1085,239.45,239.26,160.07773241]
[1731826894971,68.7365532,239.45,239.26,58.8790332]
[1731826895478,38.6280532,239.43,239.26,58.8790332]
[1731826896251,0.12898257,239.27,239.26,58.8790332]
[1731826896447,0.12898257,239.27,239.26,63.0585332]
[1731826897263,0.12898257,239.27,239.26,42.9330432]
[1731826897469,0.12898257,239.27,239.26,42.8075532]
[1731826897667,0.12898257,239.27,239.22,38.6280532]
[1731826897970,0.12898257,239.27,239.22,42.8081532]
[1731826899973,0.12898257,239.27,239.22,38.6280532]
[1731826900162,0.12898257,239.27,239.2,53.2599532]
[1731826900576,23.776884,239.26,239.2,10.4514]
[1731826902189,23.776884,239.26,239.18,4.1808]
[1731826902478,23.776884,239.2,239.12,38.6280532]
[1731826902774,23.776884,239.2,239.11,4.182]
[1731826902982,23.776884,239.21,239.12,38.6280532]
[1731826903957,23.776884,239.21,239.12,42.8098532]
[1731826904159,23.776884,239.21,239.12,53.2648532]
[1731826904969,42.93643577,239.27,239.17,38.6280532]
[1731826905581,4.30838257,239.27,239.19,38.6280532]
[1731826905963,42.93643577,239.27,239.17,38.6280532]
[1731826906162,42.93643577,239.27,239.13,4.1817]
[1731826906163,38.6280532,239.21,239.13,4.1817]
[1731826907181,23.776884,239.16,239.07,10.4571]
[1731826907488,23.776884,239.14,239.05,4.1831]
[1731826907656,23.776884,239.14,239.06,38.6280532]
[1731826908083,23.776884,239.16,239.07,4.1828]
[1731826908292,23.776884,239.16,239.07,14.6399]
[1731826909381,23.776884,239.14,239.07,14.6399]
[1731826909691,23.776884,239.14,239.07,10.4571]
[1731826910667,23.776884,239.14,239.04,42.8113532]
[1731826910987,38.6280532,239.05,238.97,1.22553682]
[1731826911189,23.776884,239.04,238.97,11.68703682]
[1731826911392,23.776884,239.02,238.97,11.68703682]
[1731826911776,23.776884,239.02,238.97,10.4615]
[1731826911990,23.776884,239.02,238.94,0.4646735]
[1731826912173,23.776884,238.98,238.94,0.4646735]
[1731826912493,23.776884,238.96,238.94,0.4646735]
[1731826913371,27.961784,238.96,238.94,0.4646735]
[1731826913573,62.4049372,238.95,238.94,0.4646735]
[1731826913990,23.776884,238.95,238.94,0.4646735]
[1731826914194,38.6280532,239.03,238.94,0.4646735]
[1731826914397,38.6280532,239.03,238.94,39.0927267]
[1731826914699,38.6280532,239.01,238.94,0.4646735]
[1731826915581,23.776884,239.02,238.94,4.6496735]
[1731826916078,23.776884,239.02,238.94,0.4646735]
[1731826916276,38.6280532,239.01,238.94,0.4646735]
[1731826916576,38.6280532,238.97,238.94,0.4646735]
[1731826916972,38.6280532,239.01,238.94,0.4646735]
[1731826917171,23.776884,239.0,238.94,0.4646735]
[1731826917690,4.1836,239.03,238.94,0.4646735]
[1731826917691,38.6280532,239.03,238.94,4.6496735]
[1731826917896,38.71789905,239.05,238.95,0.12549]
[1731826918576,38.71789905,239.05,238.94,43.2777267]
[1731826918892,38.6280532,239.03,238.94,0.4646735]
[1731826919096,38.6280532,239.01,238.94,0.4646735]
[1731826919300,23.776884,238.98,238.94,0.4646735]
[1731826919894,38.6280532,239.03,238.94,4.6495735]
[1731826920076,0.08984585,239.05,238.94,4.6495735]
[1731826920077,38.71789905,239.05,238.95,38.6280532]
[1731826920575,0.08984585,239.05,239.0,0.12549]
[1731826920997,0.08984585,239.05,238.99,0.25098]
[1731826921296,0.08984585,239.05,239.01,0.12549]
[1731826921474,0.08984585,239.05,239.03,0.12549]
[1731826922276,0.08984585,239.05,239.03,0.25098]
[1731826922975,0.08984585,239.05,239.03,0.12549]
[1731826923200,0.08984585,239.05,238.98,0.25098]
[1731826923201,23.776884,239.04,238.98,0.25098]
[1731826923389,0.08984585,239.05,238.99,38.70923574]
[1731826923596,0.08984585,239.05,238.97,14.6461]
[1731826923597,38.79908159,239.05,238.97,14.6461]
[1731826923814,23.776884,239.04,238.97,14.6461]
[1731826924101,38.79908159,239.05,238.97,53.35533574]
[1731826924102,0.08984585,239.05,238.97,53.35533574]
[1731826924307,0.08984585,239.05,238.99,38.70923574]
[1731826924685,0.08984585,239.05,238.97,14.6461]
[1731826924686,38.79908159,239.05,238.97,14.6461]
[1731826924897,23.776884,239.04,238.98,0.12549]
[1731826925083,23.776884,239.04,238.97,14.6461]
[1731826925084,38.70923574,238.99,238.94,0.4646735]
[1731826925286,38.70923574,239.0,238.94,4.6496735]
[1731826926102,38.70923574,239.0,238.94,0.4646735]
[1731826926310,0.08984585,239.05,238.94,0.4646735]
[1731826926311,38.70923574,238.96,238.94,0.4646735]
[1731826926679,38.70923574,238.96,238.82,38.70923574]
[1731826926680,58.80923574,238.95,238.8,10.4686]
[1731826926894,38.70923574,238.87,238.8,10.4686]
[1731826927213,38.70923574,238.89,238.8,14.6562]
[1731826927385,38.70923574,238.87,238.8,14.6562]
[1731826927592,42.89563574,238.87,238.8,10.4686]
[1731826927791,38.70923574,238.87,238.8,10.4686]
[1731826928290,38.70923574,238.85,238.77,4.188]
[1731826928803,38.70923574,238.85,238.77,14.6583]
[1731826928996,38.70923574,238.81,238.76,1.22661474]
[1731826929197,38.70923574,238.81,238.72,16.737974]
[1731826929398,38.70923574,238.81,238.71,53.37123574]
[1731826929606,23.776884,238.8,238.71,53.37123574]
[1731826929791,23.776884,238.8,238.71,14.662]
[1731826929990,38.70923574,238.79,238.71,14.662]
[1731826931295,38.70923574,238.79,238.72,0.25098]
[1731826931790,38.70923574,238.84,238.74,38.70923574]
[1731826932101,38.70923574,238.82,238.72,10.4725]
[1731826932304,38.70923574,238.8,238.72,10.4725]
[1731826932497,38.70923574,238.8,238.72,14.6615]
[1731826932993,38.70923574,238.8,238.72,10.4725]
[1731826933307,23.776884,238.79,238.72,14.6615]
[1731826933517,38.70923574,238.82,238.73,0.12549]
[1731826933889,38.70923574,238.89,238.79,38.70923574]
[1731826934107,38.70923574,238.89,238.8,0.12549]
[1731826934804,38.70923574,238.89,238.8,0.25098]
[1731826935020,38.70923574,238.85,238.76,0.25098]
[1731826935307,0.1,238.92,238.76,0.12549]
[1731826935308,38.70923574,238.83,238.76,0.12549]
[1731826935492,38.70923574,238.79,238.75,12.7495]
[1731826935703,38.70923574,238.77,238.7,4.6538735]
[1731826936790,38.70923574,238.77,238.71,0.25098]
[1731826937287,38.70923574,238.79,238.71,0.25098]
[1731826938407,42.89703574,238.79,238.71,0.25098]
[1731826938790,38.70923574,238.77,238.71,0.25098]
[1731826938991,38.70923574,238.83,238.73,38.96021574]
[1731826939710,38.70923574,238.79,238.71,0.12549]
[1731826940522,38.70923574,238.79,238.71,4.31449]
[1731826940817,38.70923574,238.81,238.72,0.12549]
[1731826941012,38.70923574,238.85,238.75,38.70923574]
[1731826941194,38.70923574,238.85,238.76,0.25098]
[1731826941396,38.70923574,238.91,238.81,38.70923574]
[1731826941604,38.70923574,238.93,238.83,38.70923574]
[1731826941917,38.70923574,238.93,238.84,0.25098]
[1731826942415,38.70923574,238.91,238.82,0.25098]
[1731826942594,38.70923574,238.86,238.8,0.25098]
[1731826943115,38.70923574,238.84,238.79,0.25098]
[1731826943286,23.776884,238.83,238.75,0.25098]
[1731826943495,38.70923574,238.82,238.75,0.25098]
[1731826943692,38.70923574,238.82,238.74,10.4712]
[1731826943894,38.70923574,238.8,238.74,10.4712]
[1731826944309,23.776884,238.79,238.71,12.7495]
[1731826944545,4.1879,238.78,238.71,12.7495]
[1731826945715,23.776884,238.79,238.71,0.25098]
[1731826946703,27.964684,238.79,238.71,0.25098]
[1731826946887,27.964684,238.79,238.71,4.43998]
[1731826947505,30.8052,238.87,238.71,4.43998]
[1731826947506,23.88338266,238.84,238.74,23.88338266]
[1731826947826,23.776884,238.83,238.75,4.43938]
[1731826947994,23.88338266,238.82,238.75,4.43938]
[1731826948319,23.88338266,238.82,238.75,0.25098]
[1731826948505,23.776884,238.83,238.75,0.25098]
[1731826948506,23.88338266,238.8,238.75,0.25098]
[1731826948698,23.88338266,238.78,238.75,0.25098]
[1731826949413,23.88338266,238.8,238.75,0.25098]
[1731826950122,23.776884,238.79,238.75,0.25098]
[1731826951126,27.964684,238.79,238.72,0.25098]
[1731826951624,23.88338266,238.78,238.72,0.25098]
[1731826951921,27.964684,238.79,238.7,0.4646735]
[1731826951922,23.776884,238.72,238.7,0.4646735]
[1731826952218,23.88338266,238.73,238.7,0.4646735]
[1731826952420,23.88338266,238.75,238.7,0.4646735]
[1731826953213,23.88338266,238.75,238.71,0.25098]
[1731826953516,28.07188266,238.75,238.71,0.25098]
[1731826954318,23.776884,238.74,238.7,0.4646735]
[1731826954498,23.88338266,238.73,238.7,0.4646735]
[1731826955209,28.07218266,238.73,238.7,0.4646735]
[1731826955520,4.1888,238.73,238.7,0.4646735]
[1731826955909,28.07218266,238.73,238.7,0.4646735]
[1731826956405,23.776884,238.72,238.7,0.4646735]
[1731826957223,4.1891,238.71,238.7,0.4646735]
[1731826958020,27.965984,238.71,238.7,0.4646735]
[1731826959613,0.04000007,238.72,238.7,0.7156535]
[1731826959791,0.04000007,238.72,238.71,0.25098]
[1731826960229,6.52395394,238.87,238.73,24.127864]
[1731826960406,23.88338266,238.92,238.82,0.25098]
[1731826960600,28.06858266,238.94,238.84,0.12549]
[1731826960919,28.06858266,238.94,238.84,0.25098]
[1731826961302,28.06858266,238.94,238.84,4.43768]
[1731826961517,23.88338266,238.96,238.85,23.88338266]
[1731826961702,23.88338266,238.98,238.88,0.25098]
[1731826962508,6.52162463,239.01,238.91,23.88338266]
[1731826962823,41.22713161,239.02,238.92,0.25098]
[1731826963015,23.88338266,238.99,238.92,0.25098]
[1731826963211,23.88338266,238.99,238.92,0.12549]
[1731826963518,23.88338266,238.99,238.9,0.25098]
[1731826963911,28.06778266,238.99,238.9,0.25098]
[1731826964407,23.776884,238.96,238.88,0.25098]
[1731826965300,28.06828266,238.95,238.88,0.25098]
[1731826967223,23.776884,238.94,238.87,13.0389]
[1731826967426,23.88338266,238.89,238.78,34.35288266]
[1731826967732,23.88338266,238.87,238.78,14.6573]
[1731826968227,23.88338266,238.87,238.77,13.0389]
[1731826968228,23.88338266,238.83,238.77,13.0389]
[1731826968410,23.88338266,238.81,238.72,10.4721]
[1731826968603,23.88338266,238.83,238.72,38.54448266]
[1731826968997,27.964084,238.82,238.72,38.54448266]
[1731826969720,23.88338266,238.83,238.72,38.54448266]
[1731826969931,28.07048266,238.83,238.74,23.88338266]
[1731826970109,23.776884,238.86,238.76,23.88338266]
[1731826970309,23.776884,238.86,238.77,0.12549]
[1731826970911,23.88338266,238.91,238.81,0.12549]
[1731826971107,23.88338266,238.95,238.85,0.12549]
[1731826971309,23.88338266,238.95,238.85,0.25098]
[1731826972327,23.88338266,238.95,238.86,23.88338266]
[1731826972635,23.88338266,238.95,238.87,0.25098]
[1731826972636,28.06838266,238.95,238.87,0.25098]
[1731826972928,23.88338266,238.99,238.9,23.88338266]
[1731826973104,23.88338266,239.01,238.91,0.25098]
[1731826974529,27.960984,239.0,238.91,0.25098]
[1731826975608,23.88338266,238.97,238.89,0.25098]
[1731826975808,27.960984,239.0,238.88,0.25098]
[1731826975809,23.88338266,238.95,238.88,0.25098]
[1731826976012,23.776884,238.94,238.87,0.12549]
[1731826976502,23.776884,238.92,238.87,0.12549]
[1731826976707,23.776884,238.87,238.76,23.88338266]
[1731826976907,23.776884,238.84,238.76,23.88338266]
[1731826977135,23.776884,238.84,238.74,23.88338266]
[1731826977633,4.187,238.83,238.74,23.88338266]
[1731826977819,4.187,238.83,238.74,28.07188266]
[1731826978020,23.776884,238.84,238.76,23.88338266]
[1731826978358,23.88338266,238.87,238.76,23.88338266]
[1731826978644,23.776884,238.88,238.8,23.88338266]
[1731826978846,23.776884,238.91,238.82,23.88338266]
[1731826979023,4.1855,238.92,238.75,0.1]
[1731826979024,4.1855,238.92,238.84,23.88338266]
[1731826979226,23.88338266,238.93,238.85,0.25098]
[1731826979443,23.88338266,238.95,238.87,0.25098]
[1731826979644,23.88338266,238.95,238.87,4.43728]
[1731826979823,4.1848,238.96,238.87,4.43728]
[1731826980650,23.88338266,238.94,238.87,0.25098]
[1731826981535,23.776884,238.93,238.87,0.25098]
[1731826982949,27.962284,238.93,238.87,0.25098]
[1731826983150,23.88338266,238.98,238.89,0.25098]
[1731826983352,4.1847,238.97,238.89,0.25098]
[1731826983546,30.38557851,239.02,238.92,23.88338266]
[1731826983750,23.88338266,239.02,238.93,0.25098]
[1731826984654,28.06678266,239.04,238.95,0.25098]
[1731826984856,28.06608266,239.08,238.96,23.88338266]
[1731826985030,23.88338266,239.12,239.01,0.25098]
[1731826985226,23.88338266,239.1,239.01,0.25098]
[1731826985427,23.88338266,239.08,239.01,0.25098]
[1731826985638,23.88338266,239.06,238.99,0.25098]
[1731826985849,23.88338266,239.06,238.97,0.25098]
[1731826986031,23.88338266,239.04,238.95,0.25098]
[1731826986245,23.88338266,238.96,238.83,36.88858266]
[1731826986550,23.88338266,238.96,238.85,23.88338266]
[1731826986741,28.06818266,238.96,238.85,23.88338266]
[1731826986934,23.776884,238.95,238.85,23.88338266]
[1731826987931,23.88338266,239.01,238.9,23.88338266]
[1731826988136,23.776884,238.98,238.88,23.88338266]
[1731826988651,23.776884,238.96,238.86,23.88338266]
[1731826988836,23.88338266,238.95,238.86,23.88338266]
[1731826989845,4.1851,238.94,238.87,0.25098]
[1731826990357,4.1851,238.94,238.84,23.88338266]
[1731826990537,23.776884,238.89,238.79,10.4691]
[1731826990737,23.776884,238.89,238.78,23.88338266]
[1731826990738,23.776884,238.87,238.78,23.88338266]
[1731826990935,23.88338266,238.86,238.76,36.98828266]
[1731826991232,23.776884,238.85,238.76,36.98828266]
[1731826991439,23.776884,238.83,238.76,13.1049]
[1731826991649,23.776884,238.83,238.72,23.88338266]
[1731826991958,23.776884,238.81,238.7,50.7956735]
[1731826992144,23.776884,238.81,238.71,23.88338266]
[1731826992341,28.07058266,238.82,238.7,13.5695735]
[1731826992342,23.776884,238.79,238.7,13.5695735]
[1731826992854,28.07058266,238.82,238.72,23.88338266]
[1731826993049,23.776884,238.81,238.72,23.88338266]
[1731826993457,8.28157695,238.88,238.78,23.88338266]
[1731826993458,23.88338266,238.88,238.78,23.88338266]
[1731826993653,23.88338266,238.9,238.8,23.88338266]
[1731826993841,23.88338266,238.9,238.71,14.762]
[1731826993842,23.88338266,238.84,238.73,23.88338266]
[1731826994042,23.88338266,238.82,238.7,13.5695735]
[1731826994344,23.88338266,238.82,238.7,4.6538735]
[1731826994553,23.88338266,238.82,238.72,23.88338266]
[1731826994931,23.776884,238.81,238.72,23.88338266]
[1731826995346,23.776884,238.79,238.7,34.82135616]
[1731826995949,23.776884,238.79,238.7,39.01065616]
[1731826995950,27.964684,238.79,238.7,39.01065616]
[1731826996649,23.776884,238.79,238.71,0.25098]
[1731826996841,23.776884,238.8,238.73,0.12549]
[1731826997038,23.88338266,238.84,238.74,23.88338266]
[1731826997244,23.776884,238.85,238.75,0.25098]
[1731826997444,23.776884,238.83,238.75,0.25098]
[1731826997950,23.776884,238.81,238.75,0.25098]
[1731826999660,23.88338266,238.76,238.7,0.4646735]
[1731826999845,23.776884,238.71,238.7,0.4646735]
[1731827000663,43.776884,238.71,238.7,0.4646735]
[1731827000965,0.1,238.68,238.5,24.60923969]
[1731827001151,23.88338266,238.6,238.5,23.88338266]
[1731827001348,23.88338266,238.6,238.5,36.73578266]
[1731827001560,28.07398266,238.63,238.53,23.88338266]
[1731827001863,30.38222287,238.71,238.55,23.88338266]
[1731827001864,23.776884,238.65,238.55,23.88338266]
[1731827002243,23.88338266,238.66,238.55,23.88338266]
[1731827002443,23.776884,238.65,238.55,23.88338266]
[1731827002639,23.776884,238.65,238.57,23.88338266]
[1731827002856,23.88338266,238.68,238.57,23.88338266]
[1731827003059,23.776884,238.69,238.61,23.88338266]
[1731827003746,27.966384,238.69,238.61,23.88338266]
[1731827004059,23.776884,238.69,238.62,0.25098]
[1731827004362,23.776884,238.7,238.62,0.25098]
[1731827005049,4.1889,238.73,238.62,0.25098]
[1731827005245,4.1889,238.73,238.65,0.25098]
[1731827005440,23.88338266,238.76,238.65,0.25098]
[1731827005660,4.1882,238.77,238.67,4.44068]
[1731827006350,4.1882,238.77,238.69,0.12549]
[1731827006556,4.1882,238.77,238.69,0.25098]
[1731827007263,23.776884,238.73,238.69,0.12549]
[1731827007566,47.66026666,238.73,238.69,0.12549]
[1731827008645,23.776884,238.73,238.69,0.12549]
[1731827008851,23.776884,238.74,238.69,0.12549]
[1731827009562,23.88338266,238.73,238.62,0.12549]
[1731827009757,23.88338266,238.71,238.61,38.55138266]
[1731827009961,23.776884,238.7,238.61,38.55138266]
[1731827010853,23.88338266,238.65,238.54,13.1257]
[1731827011170,23.776884,238.68,238.54,13.1257]
[1731827011171,23.88338266,238.61,238.54,13.1257]
[1731827011475,23.776884,238.6,238.54,13.1257]
[1731827012097,4.1912,238.59,238.51,23.88338266]
[1731827012273,4.1912,238.59,238.51,34.36498266]
[1731827012274,23.776884,238.58,238.51,34.36498266]
[1731827012769,23.776884,238.58,238.51,38.55758266]
[1731827013152,23.776884,238.6,238.52,0.25098]
[1731827013665,23.776884,238.62,238.55,23.88338266]
[1731827013855,23.776884,238.64,238.56,0.25098]
[1731827014261,27.967284,238.64,238.56,0.25098]
[1731827014472,27.967284,238.64,238.56,4.44268]
[1731827014766,23.88338266,238.63,238.56,0.25098]
[1731827014973,23.776884,238.62,238.56,0.25098]
[1731827016170,23.776884,238.6,238.56,0.25098]
[1731827016965,27.967984,238.6,238.51,23.88338266]
[1731827017464,23.776884,238.54,238.48,13.1257]
[1731827017965,23.88338266,238.55,238.48,13.1257]
[1731827018172,23.88338266,238.57,238.48,27.8018]
[1731827018372,23.776884,238.58,238.49,23.88338266]
[1731827018574,23.88338266,238.59,238.5,10.4821]
[1731827018870,28.07468266,238.59,238.5,10.4821]
[1731827019072,28.07468266,238.59,238.51,0.25098]
[1731827019750,23.776884,238.58,238.5,10.4821]
[1731827020068,23.88338266,238.55,238.5,10.4821]
[1731827020276,23.776884,238.54,238.5,10.4821]
[1731827020571,23.776884,238.54,238.48,17.3188]
[1731827021169,23.88338266,238.57,238.49,0.25098]
[1731827021361,23.776884,238.56,238.49,0.25098]
[1731827022258,23.776884,238.56,238.49,4.44388]
[1731827022468,23.776884,238.56,238.49,14.92648]
[1731827022864,6.43138862,238.91,238.49,38.80986266]
[1731827022865,23.88338266,238.59,238.49,38.80986266]
[1731827024074,23.88338266,238.53,238.49,0.12549]
[1731827024459,23.88338266,238.53,238.48,13.1257]
[1731827024661,23.88338266,238.55,238.48,27.8018]
[1731827024876,23.88338266,238.57,238.48,51.68518266]
[1731827025183,23.88338266,238.55,238.48,27.8018]
[1731827025360,23.88338266,238.55,238.48,13.1257]
[1731827025567,23.88338266,238.51,238.47,0.4646735]
[1731827026378,23.776884,238.48,238.47,0.4646735]
[1731827027977,23.88338266,238.49,238.47,0.4646735]
[1731827028277,23.776884,238.48,238.47,0.4646735]
[1731827030162,43.776884,238.48,238.47,0.4646735]
[1731827032674,67.66026666,238.44,238.43,15.0]
[1731827032876,71.85416666,238.44,238.43,15.0]
[1731827033079,51.85416666,238.44,238.43,15.0]
[1731827033264,47.66026666,238.44,238.43,15.0]
[1731827033667,23.776884,238.44,238.43,15.0]
[1731827034264,23.88338266,238.46,238.44,0.25098]
[1731827034616,23.88338266,238.46,238.43,15.0]
[1731827035280,23.88338266,238.44,238.43,12.5]
[1731827035778,47.66026666,238.44,238.43,12.5]
[1731827037981,23.88338266,238.48,238.43,12.75098]
[1731827038179,23.88338266,238.5,238.44,4.44488]
[1731827038386,23.88338266,238.52,238.44,14.92968]
[1731827038895,23.88338266,238.54,238.44,14.92968]
[1731827039468,23.88338266,238.54,238.45,23.88338266]
[1731827040004,23.88338266,238.54,238.48,0.12549]